fUST/lending_fUST_20240504
["ID","MTS","AMOUNT","RATE_DAILY","PERIOD"]
[325363226,1714752053993,409.45081971,9.999e-05,2]
[325363227,1714752074248,1622.54742962,9.999e-05,2]
[325363228,1714752136486,446.81393849,9.999e-05,2]
[325363236,1714752164106,982.19184887,9.999e-05,2]
[325363237,1714752166643,604.16564927,0.000185,2]
[325363238,1714752169166,522.35614016,9.999e-05,2]
[325363239,1714752190099,513.70463444,9.999e-05,2]
[325363240,1714752192381,1078.72294783,9.999e-05,2]
[325363241,1714752193490,700.89457381,9.999e-05,2]
[325363242,1714752197980,154.65974855,9.999e-05,2]
[325363243,1714752199206,475.45246949,9.999e-05,2]
[325363244,1714752199236,583.80419576,9.999e-05,2]
[325363245,1714752207125,314.98214382,9.999e-05,2]
[325363246,1714752213240,241.8491601,0.0002,2]
[325363247,1714752222999,200.18144808,9.999e-05,2]
[325363248,1714752224192,683.61842486,9.999e-05,2]
[325363249,1714752229709,150.65349696,0.00024326,30]
[325363250,1714752229784,150.65349696,0.0002384,120]
[325363251,1714752242127,154.65974855,9.999e-05,2]
[325363252,1714752260214,-409.45081971,0.00020539,2]
[325363253,1714752260238,-193.92733261,0.00020539,2]
[325363254,1714752260262,-1016.62184768,0.0002054,2]
[325363255,1714752306227,757.0,0.00026291,35]
[325363256,1714752307574,757.0,0.00026281,35]
[325363257,1714752308166,757.0,0.00026271,35]
[325363258,1714752337118,186.41667046,9.999e-05,2]
[325363259,1714752356578,160.83272,0.0001926,2]
[325363260,1714752364022,154.65974855,9.999e-05,2]
[325363261,1714752386780,154.65974855,9.999e-05,2]
[325363262,1714752397911,167.79981968,0.0002,2]
[325363263,1714752401756,488.51147253,0.0002,2]
[325363264,1714752424847,189.49749653,0.00018,2]
[325363265,1714752428188,530.0,0.00026261,35]
[325363266,1714752428929,530.0,0.00026251,35]
[325363267,1714752428964,150.0,0.000189,2]
[325363268,1714752429443,530.0,0.00026241,35]
[325363269,1714752432171,-154.65974855,0.00020524,2]
[325363270,1714752432192,-982.19184887,0.00020524,2]
[325363271,1714752432213,-240.0861284,0.00020525,2]
[325363272,1714752432233,-1078.72294783,0.00020525,2]
[325363273,1714752432255,-186.41667046,0.00020525,2]
[325363274,1714752432276,-154.65974855,0.00020525,2]
[325363275,1714752432297,-154.65974855,0.00020526,2]
[325363276,1714752432318,-7877.46126103,0.00020526,2]
[325363277,1714752432342,-5463.59883704,0.00020526,2]
[325363278,1714752432362,-155.01509364,0.00020526,2]
[325363279,1714752432382,-520.09958361,0.00020526,2]
[325363280,1714752432403,-1092.1017317,0.00020527,2]
[325363281,1714752432424,-583.80419576,0.00020527,2]
[325363282,1714752432445,-19362.05583561,0.00020527,2]
[325363283,1714752447086,-3052.77811249,0.00020522,2]
[325363284,1714752447107,-308.98340641,0.00020523,2]
[325363285,1714752447127,-154.65974855,0.00020523,2]
[325363286,1714752447146,-2102.35981509,0.00020526,2]
[325363287,1714752447165,-155.08396671,0.00020526,2]
[325363288,1714752447185,-189.49749653,0.00020526,2]
[325363289,1714752447204,-583.18329287,0.00020526,2]
[325363290,1714752447224,-155.66583895,0.00020526,2]
[325363291,1714752447243,-1078.72294783,0.00020526,2]
[325363292,1714752447263,-874.05683336,0.00020526,2]
[325363293,1714752447283,-168.8743949,0.00020526,2]
[325363294,1714752447303,-844.84949159,0.00020527,2]
[325363295,1714752447445,-46144.88649723,0.00020527,2]
[325363296,1714752447466,-48362.42927877,0.00020528,2]
[325363297,1714752447487,-603.23294834,0.00020549,2]
[325363298,1714752447507,-376.96373668,0.00020549,2]
[325363299,1714752447526,-154.82968734,0.00020549,2]
[325363300,1714752447546,-156.55229072,0.00020549,2]
[325363301,1714752447565,-259.80757327,0.00020549,2]
[325363302,1714752447586,-165.78379121,0.00020558,2]
[325363303,1714752447604,-1855.26958515,0.00020698,2]
[325363304,1714752447622,-235.32855546,0.00020703,2]
[325363305,1714752447642,-1041.50149135,0.00020812,2]
[325363306,1714752447661,-680.9,0.00020901,3]
[325363307,1714752447681,-720.46,0.00020902,3]
[325363308,1714752447701,-360.23,0.00020902,3]
[325363309,1714752447721,-180.11,0.00020902,3]
[325363310,1714752447743,-226.96,0.00020902,3]
[325363311,1714752447763,-155.76470997,0.00020908,2]
[325363312,1714752447786,-154.84504687,0.00020908,2]
[325363313,1714752447807,-157.8099156,0.00020908,2]
[325363314,1714752447828,-174.65205821,0.00020908,2]
[325363315,1714752447849,-200.62153397,0.00020908,2]
[325363316,1714752447868,-187.12166175,0.00020908,2]
[325363317,1714752447887,-184.50766728,0.00020908,2]
[325363318,1714752447906,-187.64219515,0.00020908,2]
[325363319,1714752447926,-307.028517,0.00020909,2]
[325363320,1714752447950,-500.0,0.00020909,2]
[325363321,1714752447969,-500.0,0.00020909,2]
[325363322,1714752447990,-500.0,0.00020909,2]
[325363323,1714752448010,-500.0,0.00020909,2]
[325363324,1714752448035,-550.82050379,0.00020909,2]
[325363325,1714752448054,-227.43718462,0.0002091,2]
[325363326,1714752448074,-1326.82107961,0.0002091,2]
[325363327,1714752448093,-156.57536265,0.0002091,2]
[325363328,1714752448114,-272.87483722,0.0002091,2]
[325363329,1714752448133,-212.8514,0.0002091,2]
[325363330,1714752448152,-155.08880143,0.0002091,2]
[325363331,1714752448172,-411.43718503,0.0002091,2]
[325363332,1714752448192,-280.23212742,0.0002091,2]
[325363333,1714752448211,-331.37017553,0.0002091,2]
[325363334,1714752448231,-154.99724652,0.0002091,2]
[325363335,1714752448250,-2321.13916159,0.0002091,2]
[325363336,1714752448270,-1441.11570624,0.0002091,2]
[325363337,1714752448289,-154.98298826,0.0002091,2]
[325363338,1714752448309,-303.93611389,0.0002091,2]
[325363339,1714752448332,-157.42491999,0.0002091,2]
[325363340,1714752448351,-155.10614473,0.0002091,2]
[325363341,1714752448370,-171.72456816,0.0002091,2]
[325363342,1714752448389,-378.96857532,0.0002091,2]
[325363343,1714752448410,-295.38645409,0.0002091,2]
[325363344,1714752448430,-154.78028992,0.0002091,2]
[325363345,1714752448451,-307.40043956,0.0002091,2]
[325363346,1714752448470,-266.67766271,0.0002091,2]
[325363347,1714752448490,-2106.44431374,0.0002091,2]
[325363348,1714752448514,-155.13605303,0.0002091,2]
[325363349,1714752448534,-226.56766843,0.0002091,2]
[325363350,1714752448554,-244.80635361,0.0002091,2]
[325363351,1714752448574,-155.56845653,0.0002091,2]
[325363352,1714752448594,-162.18903131,0.0002091,2]
[325363353,1714752448613,-400.0,0.0002091,2]
[325363354,1714752448633,-162.20268828,0.0002091,2]
[325363355,1714752448653,-260.981082,0.0002091,2]
[325363356,1714752448672,-211.95621242,0.0002091,2]
[325363357,1714752448693,-718.0782307,0.0002091,2]
[325363358,1714752448712,-208.45875305,0.0002091,2]
[325363359,1714752448732,-277.08499665,0.0002091,2]
[325363360,1714752448753,-155.57395438,0.0002091,2]
[325363361,1714752448772,-251.37354109,0.0002091,2]
[325363362,1714752448793,-312.80508109,0.0002091,2]
[325363363,1714752448815,-1801.78864122,0.0002091,2]
[325363364,1714752448836,-204.76876405,0.0002091,2]
[325363365,1714752448858,-155.18475814,0.0002091,2]
[325363366,1714752448877,-255.13688453,0.0002091,2]
[325363367,1714752448897,-159.078043,0.0002091,2]
[325363368,1714752448917,-250.01483531,0.0002091,2]
[325363369,1714752448941,-907.8166184,0.0002091,2]
[325363370,1714752448962,-275.02179665,0.0002091,2]
[325363371,1714752448983,-359.45320568,0.0002091,2]
[325363372,1714752449004,-1184.25149599,0.0002091,2]
[325363373,1714752449026,-260.49968797,0.0002091,2]
[325363374,1714752449046,-270.31710584,0.0002091,2]
[325363375,1714752449066,-184.05022882,0.0002091,2]
[325363376,1714752449088,-1622.34234505,0.0002091,2]
[325363377,1714752449109,-446.81393849,0.0002091,2]
[325363378,1714752449128,-335.37825074,0.0002091,2]
[325363379,1714752449147,-314.58553453,0.0002091,2]
[325363380,1714752449267,-206.03243114,0.0002091,2]
[325363381,1714752449286,-368.36195427,0.0002091,2]
[325363382,1714752449306,-200.12196174,0.0002091,2]
[325363383,1714752449328,-251.20226081,0.0002091,2]
[325363384,1714752449348,-1395.86161104,0.0002091,2]
[325363385,1714752449369,-193.89951412,0.0002091,2]
[325363386,1714752449389,-329.07017814,0.0002091,2]
[325363387,1714752449409,-291.71004775,0.0002091,2]
[325363388,1714752449429,-765.13621631,0.0002091,2]
[325363389,1714752449450,-1836.52651178,0.00020911,2]
[325363390,1714752449470,-285.6522312,0.00020911,2]
[325363391,1714752449490,-164.20775399,0.00020911,2]
[325363392,1714752449509,-155.11171458,0.00020911,2]
[325363393,1714752449528,-162.7854421,0.00020911,2]
[325363394,1714752449546,-162.40273978,0.00020911,2]
[325363395,1714752449569,-283.4494848,0.00020911,2]
[325363396,1714752449589,-13881.71380083,0.00020911,2]
[325363397,1714752449607,-1378.68043058,0.00020912,2]
[325363398,1714752449626,-390.93322179,0.00020912,2]
[325363399,1714752449645,-163.50676864,0.00020912,2]
[325363400,1714752449664,-939.34960788,0.00020912,2]
[325363401,1714752449683,-709.89305319,0.00020912,2]
[325363402,1714752449702,-15672.89435023,0.00020912,2]
[325363403,1714752449720,-170.61290967,0.00020912,2]
[325363404,1714752449739,-218.23091185,0.00020912,2]
[325363405,1714752449757,-200.0,0.00020912,2]
[325363406,1714752449776,-472.12357594,0.00020912,2]
[325363407,1714752449794,-526.48799582,0.00020912,2]
[325363408,1714752449813,-2849.10156421,0.00020912,2]
[325363409,1714752449833,-173.9276674,0.00020913,2]
[325363410,1714752449853,-500.0,0.00020913,2]
[325363411,1714752449872,-496.7265224,0.00020913,2]
[325363412,1714752449891,-187.81874374,0.00020913,2]
[325363413,1714752449910,-1041.50149135,0.00021817,2]
[325363414,1714752449930,-166.666666,0.00021918,2]
[325363415,1714752449953,-159.24114282,0.00022,2]
[325363416,1714752449972,-170.82119366,0.00022,2]
[325363417,1714752449992,-1440.92,0.00022272,3]
[325363418,1714752450013,-720.46,0.00022272,3]
[325363419,1714752450032,-360.22,0.00022272,3]
[325363420,1714752450051,-453.92,0.00022272,3]
[325363421,1714752450071,-166.666666,0.00022431,2]
[325363422,1714752450094,-1041.50149135,0.00022821,2]
[325363423,1714752450115,-166.666666,0.00022944,2]
[325363424,1714752450135,-714.56650019,0.00023,2]
[325363425,1714752450154,-166.666666,0.00023456,2]
[325363426,1714752450173,-1041.50149135,0.00023826,2]
[325363427,1714752450193,-150.0,0.000239,2]
[325363428,1714752450213,-166.666666,0.00023969,2]
[325363429,1714752450234,-166.666666,0.00024482,2]
[325363430,1714752450254,-55555.0,0.00024557,3]
[325363431,1714752450274,-160.23083728,0.00024657,2]
[325363432,1714752450294,-500.0,0.00024657,2]
[325363433,1714752450314,-500.0,0.00024657,2]
[325363434,1714752450337,-500.0,0.00024657,2]
[325363435,1714752450358,-1735.78,0.00024657,2]
[325363436,1714752450378,-500.0,0.00024657,2]
[325363437,1714752450398,-500.0,0.00024657,2]
[325363438,1714752450417,-500.0,0.00024657,2]
[325363439,1714752450437,-500.0,0.00024657,2]
[325363440,1714752450457,-502.72988029,0.00024657,2]
[325363441,1714752450476,-500.0,0.00024657,2]
[325363442,1714752450496,-572.05,0.00024657,2]
[325363443,1714752450517,-502.35540819,0.00024657,2]
[325363444,1714752450537,-498.15530433,0.00024657,2]
[325363445,1714752450557,-500.0,0.00024657,2]
[325363446,1714752450579,-500.0,0.00024657,2]
[325363447,1714752450598,-501.70824968,0.00024657,2]
[325363448,1714752450618,-500.0,0.00024657,2]
[325363449,1714752450637,-500.0,0.00024657,2]
[325363450,1714752450656,-500.0,0.00024657,2]
[325363451,1714752450674,-651.5,0.00024657,2]
[325363452,1714752450693,-500.0,0.00024657,2]
[325363453,1714752450712,-1538.53,0.00024657,2]
[325363454,1714752450732,-500.0,0.00024657,2]
[325363455,1714752450752,-500.0,0.00024657,2]
[325363456,1714752450774,-500.0,0.00024657,2]
[325363457,1714752450793,-500.0,0.00024657,2]
[325363458,1714752450813,-500.0,0.00024657,2]
[325363459,1714752450833,-500.0,0.00024657,2]
[325363460,1714752450852,-500.0,0.00024657,2]
[325363461,1714752450968,-500.0,0.00024657,2]
[325363462,1714752450990,-588.8,0.00024657,2]
[325363463,1714752451013,-500.0,0.00024657,2]
[325363464,1714752451037,-500.0,0.00024657,2]
[325363465,1714752451057,-500.0,0.00024657,2]
[325363466,1714752451080,-500.0,0.00024657,2]
[325363467,1714752451099,-482.76660965,0.00024657,2]
[325363468,1714752451120,-2072.28716163,0.00024657,2]
[325363469,1714752548270,-200.90632862,0.00020526,2]
[325363470,1714752548289,-186.93715348,0.00020526,2]
[325363471,1714752548308,-800.43004157,0.00020526,2]
[325363472,1714752548599,371.0,0.00026291,35]
[325363473,1714752551163,371.0,0.00026281,35]
[325363474,1714752553992,371.0,0.00026271,35]
[325363495,1714752632537,-2474.95420185,0.00020526,2]
[325363496,1714752632547,-7684.9789448,0.00020526,2]
[325363497,1714752632556,-240.0861284,0.00020907,2]
[325363498,1714752632565,-189.49749653,0.00020908,2]
[325363499,1714752632574,-188.11219639,0.00020909,2]
[325363500,1714752632584,-1078.72294783,0.00021917,2]
[325363501,1714752632592,-166.666666,0.00021918,2]
[325363502,1714752632602,-154.65974855,0.0002243,2]
[325363503,1714752632611,-159.311331,0.0002243,2]
[325363504,1714752632620,-21.23614236,0.00022431,2]
[325363505,1714752632632,-145.43052364,0.00022431,2]
[325363506,1714752632642,-2102.35981509,0.00022738,2]
[325363507,1714752632652,-166.666666,0.00022944,2]
[325363508,1714752632662,-166.666666,0.00023456,2]
[325363509,1714752632671,-166.666666,0.00023969,2]
[325363510,1714752632680,-40068.80817136,0.00024,2]
[325363511,1714752632689,-154.69709054,0.00024382,2]
[325363512,1714752632698,-154.69709054,0.0002447,2]
[325363513,1714752632707,-166.666666,0.00024482,2]
[325363514,1714752632716,-154.69709054,0.00024557,2]
[325363515,1714752632725,-3049.75141393,0.00024655,2]
[325363516,1714752632735,-714.56650019,0.00024655,2]
[325363517,1714752632746,-240.92466203,0.00024655,2]
[325363518,1714752632755,-235.58576656,0.00024655,2]
[325363519,1714752632765,-234.30331348,0.00024656,2]
[325363520,1714752632775,-17194.84290084,0.00024656,2]
[325363521,1714752632784,-4448.82230171,0.00024656,2]
[325363522,1714752632793,-283.42450042,0.00024656,2]
[325363523,1714752632802,-500.0,0.00024657,2]
[325363524,1714752632812,-502.34639512,0.00024657,2]
[325363525,1714752632821,-500.99750459,0.00024657,2]
[325363526,1714752632830,-597.46,0.00024657,2]
[325363527,1714752632839,-500.0,0.00024657,2]
[325363528,1714752632848,-500.0,0.00024657,2]
[325363529,1714752632857,-500.0,0.00024657,2]
[325363530,1714752632867,-500.0,0.00024657,2]
[325363531,1714752632876,-500.0,0.00024657,2]
[325363532,1714752632885,-500.0,0.00024657,2]
[325363533,1714752632894,-500.0,0.00024657,2]
[325363534,1714752632904,-502.73119952,0.00024657,2]
[325363535,1714752632913,-500.0,0.00024657,2]
[325363536,1714752632922,-500.0,0.00024657,2]
[325363537,1714752632931,-500.0,0.00024657,2]
[325363538,1714752632940,-500.0,0.00024657,2]
[325363539,1714752632950,-500.0,0.00024657,2]
[325363540,1714752632959,-500.0,0.00024657,2]
[325363541,1714752632968,-500.0,0.00024657,2]
[325363542,1714752632978,-500.0,0.00024657,2]
[325363543,1714752632990,-631.93,0.00024657,2]
[325363544,1714752633001,-500.0,0.00024657,2]
[325363545,1714752633010,-500.0,0.00024657,2]
[325363546,1714752633020,-500.0,0.00024657,2]
[325363547,1714752633029,-500.0,0.00024657,2]
[325363548,1714752633039,-887.56,0.00024657,2]
[325363549,1714752633050,-500.0,0.00024657,2]
[325363550,1714752633060,-804.94,0.00024657,2]
[325363551,1714752633070,-500.0,0.00024657,2]
[325363552,1714752633079,-2485.15,0.00024657,2]
[325363553,1714752633089,-500.0,0.00024657,2]
[325363554,1714752633099,-433.35918705,0.00024657,2]
[325363555,1714752633108,-500.08252947,0.00024657,2]
[325363556,1714752633119,-500.0,0.00024657,2]
[325363557,1714752633129,-500.0,0.00024657,2]
[325363558,1714752633140,-660.12,0.00024657,2]
[325363559,1714752633152,-500.0,0.00024657,2]
[325363560,1714752633163,-500.0,0.00024657,2]
[325363561,1714752633171,-500.0,0.00024657,2]
[325363562,1714752633180,-500.0,0.00024657,2]
[325363563,1714752633192,-198.03298737,0.00024657,2]
[325363564,1714752633202,-503.3023558,0.00024657,2]
[325363565,1714752633212,-500.0,0.00024657,2]
[325363566,1714752633223,-500.0,0.00024657,2]
[325363567,1714752633233,-500.0,0.00024657,2]
[325363568,1714752633244,-543.88686035,0.00024657,2]
[325363569,1714752633253,-1245.86,0.00024657,2]
[325363570,1714752633263,-500.0,0.00024657,2]
[325363571,1714752633272,-501.35534649,0.00024657,2]
[325363572,1714752633282,-500.0,0.00024657,2]
[325363573,1714752633291,-625.08,0.00024657,2]
[325363574,1714752633301,-500.0,0.00024657,2]
[325363575,1714752633311,-500.0,0.00024657,2]
[325363576,1714752633320,-500.0,0.00024657,2]
[325363577,1714752633329,-484.07442677,0.00024657,2]
[325363578,1714752633338,-500.0,0.00024657,2]
[325363579,1714752633348,-500.0,0.00024657,2]
[325363580,1714752633357,-500.0,0.00024657,2]
[325363581,1714752633366,-500.0,0.00024657,2]
[325363582,1714752633376,-500.0,0.00024657,2]
[325363583,1714752633385,-521.03218059,0.00024657,2]
[325363584,1714752633394,-806.09,0.00024657,2]
[325363585,1714752633403,-500.0,0.00024657,2]
[325363586,1714752633413,-500.0,0.00024657,2]
[325363587,1714752633423,-500.0,0.00024657,2]
[325363588,1714752633433,-500.0,0.00024657,2]
[325363589,1714752633442,-340.15193975,0.00024657,2]
[325363590,1714752633451,-500.0,0.00024657,2]
[325363591,1714752633460,-500.0,0.00024657,2]
[325363592,1714752633470,-500.0,0.00024657,2]
[325363593,1714752633479,-235.07526451,0.00024657,2]
[325363594,1714752633489,-299.6568491,0.00024657,2]
[325363595,1714752633501,-500.0,0.00024657,2]
[325363596,1714752633510,-500.0,0.00024657,2]
[325363597,1714752633519,-500.0,0.00024657,2]
[325363598,1714752633529,-500.0,0.00024657,2]
[325363599,1714752633538,-500.0,0.00024657,2]
[325363600,1714752633548,-500.0,0.00024657,2]
[325363601,1714752633557,-1000.0,0.00024657,2]
[325363602,1714752633566,-224.3957374,0.00024657,2]
[325363603,1714752633576,-500.0,0.00024657,2]
[325363604,1714752633585,-500.0,0.00024657,2]
[325363605,1714752633594,-500.0,0.00024657,2]
[325363606,1714752633603,-500.0,0.00024657,2]
[325363607,1714752633613,-500.0,0.00024657,2]
[325363608,1714752633623,-500.0,0.00024657,2]
[325363609,1714752633635,-500.0,0.00024657,2]
[325363610,1714752633645,-1297.22,0.00024657,2]
[325363611,1714752633655,-500.0,0.00024657,2]
[325363612,1714752633664,-500.0,0.00024657,2]
[325363613,1714752633674,-500.0,0.00024657,2]
[325363614,1714752633683,-512.1,0.00024657,2]
[325363615,1714752633692,-500.0,0.00024657,2]
[325363616,1714752633701,-500.0,0.00024657,2]
[325363617,1714752633710,-500.0,0.00024657,2]
[325363618,1714752633719,-500.0,0.00024657,2]
[325363619,1714752633728,-500.0,0.00024657,2]
[325363620,1714752633737,-500.0,0.00024657,2]
[325363621,1714752633748,-501.74789673,0.00024657,2]
[325363622,1714752633757,-500.0,0.00024657,2]
[325363623,1714752633767,-475.3346953,0.00024657,2]
[325363624,1714752633775,-500.0,0.00024657,2]
[325363625,1714752633785,-500.0,0.00024657,2]
[325363626,1714752633794,-500.0,0.00024657,2]
[325363627,1714752633803,-562.7,0.00024657,2]
[325363628,1714752633812,-453.30264633,0.00024657,2]
[325363629,1714752633821,-500.0,0.00024657,2]
[325363630,1714752633830,-500.0,0.00024657,2]
[325363631,1714752633839,-643.18,0.00024657,2]
[325363632,1714752633848,-500.0,0.00024657,2]
[325363633,1714752633858,-637.92326348,0.00024657,2]
[325363634,1714752633866,-586.15,0.00024657,2]
[325363635,1714752633875,-500.0,0.00024657,2]
[325363636,1714752633884,-190.99130353,0.00024657,2]
[325363637,1714752633893,-500.0,0.00024657,2]
[325363638,1714752633902,-500.0,0.00024657,2]
[325363639,1714752633911,-500.0,0.00024657,2]
[325363640,1714752633920,-500.0,0.00024657,2]
[325363641,1714752633930,-500.0,0.00024657,2]
[325363642,1714752633939,-500.0,0.00024657,2]
[325363643,1714752633948,-1159.64,0.00024657,2]
[325363644,1714752633958,-500.0,0.00024657,2]
[325363645,1714752633967,-500.0,0.00024657,2]
[325363646,1714752633977,-1526.51,0.00024657,2]
[325363647,1714752633990,-607.56,0.00024657,2]
[325363648,1714752634001,-500.0,0.00024657,2]
[325363649,1714752634010,-2142.42,0.00024657,2]
[325363650,1714752634020,-500.0,0.00024657,2]
[325363651,1714752634029,-500.0,0.00024657,2]
[325363652,1714752634038,-500.0,0.00024657,2]
[325363653,1714752634048,-500.0,0.00024657,2]
[325363654,1714752634058,-500.0,0.00024657,2]
[325363655,1714752634068,-2381.42,0.00024657,2]
[325363656,1714752634077,-500.0,0.00024657,2]
[325363657,1714752634087,-500.0,0.00024657,2]
[325363658,1714752634096,-500.0,0.00024657,2]
[325363659,1714752634105,-630.7,0.00024657,2]
[325363660,1714752634114,-500.0,0.00024657,2]
[325363661,1714752634122,-502.56255958,0.00024657,2]
[325363662,1714752634132,-500.0,0.00024657,2]
[325363663,1714752634141,-500.0,0.00024657,2]
[325363664,1714752634150,-500.0,0.00024657,2]
[325363665,1714752634159,-505.11085513,0.00024657,2]
[325363666,1714752634168,-500.0,0.00024657,2]
[325363667,1714752634177,-500.0,0.00024657,2]
[325363668,1714752634186,-500.0,0.00024657,2]
[325363669,1714752634195,-505.62340699,0.00024657,2]
[325363670,1714752634204,-500.0,0.00024657,2]
[325363671,1714752634213,-893.73,0.00024657,2]
[325363672,1714752634223,-500.0,0.00024657,2]
[325363673,1714752634232,-3272.0,0.00024657,2]
[325363674,1714752634241,-500.0,0.00024657,2]
[325363675,1714752634254,-500.0,0.00024657,2]
[325363676,1714752634263,-3018.34,0.00024657,2]
[325363677,1714752634272,-500.0,0.00024657,2]
[325363678,1714752634282,-500.0,0.00024657,2]
[325363679,1714752634291,-597.0314805,0.00024657,2]
[325363680,1714752634300,-521.73,0.00024657,2]
[325363681,1714752634309,-500.0,0.00024657,2]
[325363682,1714752634319,-500.0,0.00024657,2]
[325363683,1714752634328,-500.0,0.00024657,2]
[325363684,1714752634337,-500.0,0.00024657,2]
[325363685,1714752634347,-517.01601964,0.00024657,2]
[325363686,1714752634356,-500.0,0.00024657,2]
[325363687,1714752634366,-500.0,0.00024657,2]
[325363688,1714752634375,-205.51453356,0.00024657,2]
[325363689,1714752634486,-500.0,0.00024657,2]
[325363690,1714752634498,-240.197315,0.00024657,2]
[325363691,1714752634508,-500.0,0.00024657,2]
[325363692,1714752634517,-500.0,0.00024657,2]
[325363693,1714752634527,-510.42,0.00024657,2]
[325363694,1714752634536,-533.1,0.00024657,2]
[325363695,1714752634546,-500.0,0.00024657,2]
[325363696,1714752634555,-500.0,0.00024657,2]
[325363697,1714752634565,-500.0,0.00024657,2]
[325363698,1714752634574,-500.0,0.00024657,2]
[325363699,1714752634583,-404.9903359,0.00024657,2]
[325363700,1714752634592,-500.0,0.00024657,2]
[325363701,1714752634602,-558.54,0.00024657,2]
[325363702,1714752634610,-500.0,0.00024657,2]
[325363703,1714752634619,-500.0,0.00024657,2]
[325363704,1714752634629,-500.0,0.00024657,2]
[325363705,1714752634638,-703.36,0.00024657,2]
[325363706,1714752634647,-500.0,0.00024657,2]
[325363707,1714752634655,-500.0,0.00024657,2]
[325363708,1714752634664,-500.0,0.00024657,2]
[325363709,1714752634673,-500.0,0.00024657,2]
[325363710,1714752634682,-500.0,0.00024657,2]
[325363711,1714752634691,-442.59237009,0.00024657,2]
[325363712,1714752634700,-500.0,0.00024657,2]
[325363713,1714752634709,-500.0,0.00024657,2]
[325363714,1714752634718,-502.84182384,0.00024657,2]
[325363715,1714752634727,-501.28582001,0.00024657,2]
[325363716,1714752634736,-500.0,0.00024657,2]
[325363717,1714752634747,-500.0,0.00024657,2]
[325363718,1714752634756,-500.0,0.00024657,2]
[325363719,1714752634765,-623.14,0.00024657,2]
[325363720,1714752634774,-500.0,0.00024657,2]
[325363721,1714752634783,-1095.57,0.00024657,2]
[325363722,1714752634792,-257.40971921,0.00024657,2]
[325363723,1714752634801,-723.47,0.00024657,2]
[325363724,1714752634810,-500.0,0.00024657,2]
[325363725,1714752634819,-1145.55,0.00024657,2]
[325363726,1714752634828,-500.0,0.00024657,2]
[325363727,1714752634836,-500.0,0.00024657,2]
[325363728,1714752634846,-500.0,0.00024657,2]
[325363729,1714752634855,-500.88123822,0.00024657,2]
[325363730,1714752634864,-500.0,0.00024657,2]
[325363731,1714752634873,-500.0,0.00024657,2]
[325363732,1714752634882,-500.0,0.00024657,2]
[325363733,1714752634891,-500.0,0.00024657,2]
[325363734,1714752634901,-505.568591,0.00024657,2]
[325363735,1714752634910,-500.0,0.00024657,2]
[325363736,1714752634920,-500.0,0.00024657,2]
[325363737,1714752634929,-300.0,0.00024657,2]
[325363738,1714752634938,-555.58122876,0.00024657,2]
[325363739,1714752634957,-8.47877124,0.00024657,2]
[325363740,1714752634967,-543.98545132,0.00024657,2]
[325363741,1714752634977,-500.0,0.00024657,2]
[325363742,1714752634987,-1500.12,0.00024657,2]
[325363743,1714752634998,-1269.66,0.00024657,2]
[325363744,1714752635008,-803.56,0.00024657,2]
[325363745,1714752635018,-300.0,0.00024657,2]
[325363746,1714752635028,-500.0,0.00024657,2]
[325363747,1714752635037,-500.0,0.00024657,2]
[325363748,1714752635047,-500.0,0.00024657,2]
[325363749,1714752635059,-509.00051091,0.00024657,2]
[325363750,1714752635071,-500.0,0.00024657,2]
[325363751,1714752635081,-500.0,0.00024657,2]
[325363752,1714752635091,-500.0,0.00024657,2]